Workbook

Sheet Sheet1
A1: 2013년 1월
A2: 전 학생회비 이월 | G2: 지출
A3: 날짜 | B3: 행사명 | C3: 내역 | D3: 계정 | E3: 금액 | G3: 없음
A4: 2013.01.02 | B4: 전 학생회비 이월 | C4: 전 학생회비 이월 | D4: 학생회비 | E4: 276565
A5: 총액 | E5: =E4 -> 276565
A7: 1월 계정잔액
A8: 학생회비잔액 | B8: 276565 | C8: =B8 -> 276565
A9: 교학팀지원금 | B9: 0 | C9: =B9 -> 0
A11: 2013년 2월
A12: 계정잔액
A13: 계정 | B13: 금액
A14: 학생회비 | B14: =C8 -> 276565
A15: 교학팀지원금 | B15: =C9 -> 0
A17: 학생회 회식 수입 | G17: 학생회 회식 지출
A18: 날짜 | B18: 행사명 | C18: 내역 | D18: 계정 | E18: 금액 | G18: 날짜 | H18: 행사명 | I18: 내역 | J18: 계정 | K18: 금액
G19: 2013.2.18 | H19: 학생회 회식 | I19: 술래잡기 | J19: 학생회비 | K19: 45000
A20: 총액 | E20: =SUM(E17:E19) -> 0 | G20: 총액 | K20: =SUM(K17:K19) -> 45000
A22: 학생회 회식 후 계정잔액
A23: 학생회비잔액 | B23: 276,565-45,000 | C23: =276565-45000 -> 231565
A24: 교학팀지원금 | B24: 0 | C24: 0
A26: 졸업식 행사 수입 | G26: 졸업식 행사 지출
A27: 날짜 | B27: 행사명 | C27: 내역 | D27: 계정 | E27: 금액 | G27: 날짜 | H27: 행사명 | I27: 내역 | J27: 계정 | K27: 금액
A28: 2013.2.22 | B28: 졸업식 | C28: 교학팀지원금입금 | D28: 교학팀지원금 | E28: 60000 | G28: 2013.2.22 | H28: 졸업식 | I28: Cake & Wine | J28: 학생회비 | K28: 32000
I29: 졸업 선물(텀블러) | J29: 학생회비 | K29: 92800
I30: Photo-Wall | J30: 교학팀지원금 | K30: 60000
A31: 총액 | E31: 60000 | G31: 총액 | K31: =SUM(K28:K30) -> 184800
A33: 졸업식 후 계정잔액
A34: 학생회비잔액 | B34: 231,565-32,000-92800 | C34: =231565-32000-92800 -> 106765
A35: 교학팀지원금 | B35: 0+60,000-60,000 | C35: 0
A37: 신입생 O.T. 행사 수입 | G37: 신입생 O.T. 행사 지출
A38: 날짜 | B38: 행사명 | C38: 내역 | D38: 계정 | E38: 금액 | G38: 날짜 | H38: 행사명 | I38: 내역 | J38: 계정 | K38: 금액
A39: 총액 | E39: =SUM(E36:E38) -> 0 | G39: 총액 | K39: =SUM(K36:K38) -> 0
A41: 신입생 O.T. 후 계정잔액
A42: 학생회비잔액 | B42: 106765 | C42: =231565-32000-92800 -> 106765
A43: 교학팀지원금 | B43: 0 | C43: 0
A45: 2월 계정잔액
A46: 학생회비잔액 | B46: 106765 | C46: =C34 -> 106765
A47: 교학팀지원금 | B47: 0 | C47: 0
A49: 2013년 3월
A50: 계정잔액
A51: 계정 | B51: 금액
A52: 학생회비 | B52: 106765
A53: 교학팀지원금 | B53: 0
A55: 새터 수입 | G55: 새터 지출
A56: 날짜 | B56: 행사명 | C56: 내역 | D56: 계정 | E56: 금액 | G56: 날짜 | H56: 행사명 | I56: 내역 | J56: 계정 | K56: 금액
G57: 2013.03.01 | H57: 새터 | I57: 새터 뒷정리 후 회식 | J57: 학생회비 | K57: 70000
A58: 총액 | E58: =SUM(E57:E57) -> 0 | G58: 총액 | K58: =SUM(K57:K57) -> 70000
A60: 새터 후 계정잔액
A61: 학생회비잔액 | B61: 106765-70000 | C61: =106765-70000 -> 36765
A62: 교학팀지원금 | B62: 0 | C62: 0
A64: BeeBiz 학생회 통장 신개설 수입 | G64: BeeBiz 학생회 통장 신개설 지출
A65: 날짜 | B65: 행사명 | C65: 내역 | D65: 계정 | E65: 금액 | G65: 날짜 | H65: 행사명 | I65: 내역 | J65: 계정 | K65: 금액
A66: 2013.03.04 | B66: 학생회 통장 신개설 | C66: 잔여금 이전 | D66: 학생회비 | E66: 36765
A67: 총액 | E67: =SUM(E66:E66) -> 36765 | G67: 총액 | K67: =SUM(K66:K66) -> 0
A69: 통장 신개설 후 계정잔액
A70: 학생회비잔액 | B70: 36765 | C70: 0
A71: 교학팀지원금 | B71: 0 | C71: 0
A73: 2013년도 학생회 지원금 수입 | G73: 2013년도 학생회 지원금 지출
A74: 날짜 | B74: 행사명 | C74: 내역 | D74: 계정 | E74: 금액 | G74: 날짜 | H74: 행사명 | I74: 내역 | J74: 계정 | K74: 금액
A75: 2013.03.07 | B75: 학생회비 입금 | C75: 학생회비 입금 | D75: 학생회비 | E75: 2096000
B76: 교학팀지원금 입금 | C76: 지원금 입금 | D76: 교학팀지원금 | E76: =2000000+5500000 -> 7500000
A77: 총액 | E77: =SUM(E75:E76) -> 9596000 | G77: 총액 | K77: =SUM(#REF!) -> 
A79: 학생회 지원금 입금 후 계정잔액
A80: 학생회비잔액 | B80: 36765+2096000 | C80: =36765+2096000 -> 2132765
A81: 교학팀지원금 | B81: 0+2000000 | C81: 7500000
A83: 2013년도 개강총회 및 A4용지 배부사업 수입 | G83: 2013년도 개강총회 및 A4용지 배부사업 지출
A84: 날짜 | B84: 행사명 | C84: 내역 | D84: 계정 | E84: 금액 | G84: 날짜 | H84: 행사명 | I84: 내역 | J84: 계정 | K84: 금액
G85: 2013.03.08 | H85: e-Business 개강총회 | I85: A4 용지 배부 | J85: 교학팀 지원금 | K85: 414000
H86: e-Business 개강총회 | I86: 뒤풀이 (쾌걸제로) | J86: 교학팀 지원금 | K86: 852900
H87: e-Business 개강총회 | I87: 뒤풀이 (장터주막) | J87: 교학팀 지원금 | K87: 147100
A88: 총액 | E88: =SUM(E83:E87) -> 0 | G88: 총액 | K88: =SUM(K85:K87) -> 1414000
A90: 2013년도 개강총회 및 A4용지 배부사업 후 계정잔액
A91: 학생회비잔액 | B91: =36765+2096000 -> 2132765 | C91: =36765+2096000 -> 2132765
A92: 교학팀지원금 | B92: 7500000-1414000 | C92: =7500000-1414000 -> 6086000
A94: 2013년도 춘계 M.T. 수입 | G94: 2013년도 춘계 M.T. 지출
A95: 날짜 | B95: 행사명 | C95: 내역 | D95: 계정 | E95: 금액 | G95: 날짜 | H95: 행사명 | I95: 내역 | J95: 계정 | K95: 금액
A96: 2013.03.16 | B96: 2013년도 춘계 M.T. | C96: 학생 각출 수입 | D96: 학생회비 | E96: 1280000 | G96: 2013.03.11 | H96: 2013년도 춘계 M.T. | I96: 숙박비 선금 | J96: 학생회비 | K96: 300000
G97: 2013.03.15 | H97: 2013년도 춘계 M.T. | I97: 식비 | J97: 학생회비 | K97: 300000
G98: 2013.03.18 | H98: 2013년도 춘계 M.T. | I98: 숙박비 | J98: 학생회비 | K98: 1260000
H99: 2013년도 춘계 M.T. | I99: 주류비 | J99: 학생회비 | K99: 248000
H100: 2014년도 춘계 M.T. | I100: 버스비 | J100: 교학팀 지원금 | K100: 770000
H101: 2015년도 춘계 M.T. | I101: 비품구매 | J101: 교학팀 지원금 | K101: 225850
H102: 2016년도 춘계 M.T. | I102: 보험료 | J102: 교학팀 지원금 | K102: 19460
A103: 총액 | E103: =SUM(E96:E102) -> 1280000 | G103: 총액 | K103: =SUM(K96:K102) -> 3123310
A105: 2013년도 춘계 M.T. 후 계정잔액
A106: 학생회비잔액 | B106: 2132765+1280000-300000-300000-1260000-248000 | C106: =2132765+1280000-300000-300000-1260000-248000 -> 1304765
A107: 교학팀지원금 | B107: 6086000-770000-225850-19460 | C107: =6086000-770000-225850-19460 -> 5070690
A109: 2013년 4월
A110: 계정잔액
A111: 학생회비잔액 | B111: =2132765+1280000-300000-300000-1260000-248000 -> 1304765
A112: 교학팀지원금 | B112: =6086000-770000-225850-19460 -> 5070690
A114: 교수님과 식사 수입 | G114: 교수님과 식사 지출
A115: 날짜 | B115: 행사명 | C115: 내역 | D115: 계정 | E115: 금액 | G115: 날짜 | H115: 행사명 | I115: 내역 | J115: 계정 | K115: 금액
G116: 2013.04.03 | H116: 교수님과 식사 | I116: 식사비 | J116: 학생회비 | K116: 98000
A117: 총액 | E117: =SUM(E113:E116) -> 0 | G117: 총액 | K117: =SUM(K113:K116) -> 98000
A119: 교수님과 식사 후 계정잔액
A120: 학생회비잔액 | B120: 1304765-98000 | C120: =1304765-98000 -> 1206765
A121: 교학팀지원금 | B121: =6086000-770000-225850-19460 -> 5070690 | C121: =6086000-770000-225850-19460 -> 5070690
A123: 중간고사 간식사업 수입 | G123: 중간고사 간식사업 지출
A124: 날짜 | B124: 행사명 | C124: 내역 | D124: 계정 | E124: 금액 | G124: 날짜 | H124: 행사명 | I124: 내역 | J124: 계정 | K124: 금액
G125: 2013.04.23 | H125: 중간고사 간식사업 | I125: 이동교통비 | J125: 학생회비 | K125: 2800
H126: 중간고사 간식사업 | I126: 이동교통비 | J126: 학생회비 | K126: 4200
H127: 중간고사 간식사업 | I127: 닭강정 | J127: 교학팀 지원금 | K127: 120000
I128: 음료(콜라) | J128: 교학팀 지원금 | K128: 45000
I129: 음료(사이다) | J129: 교학팀 지원금 | K129: 18000
A130: 총액 | E130: 0 | G130: 총액 | K130: =SUM(K125:K129) -> 190000
A132: 중간고사 간식사업 후 계정잔액
A133: 학생회비잔액 | B133: 1206765-2800-4200 | C133: =1304765-98000 -> 1206765
A134: 교학팀지원금 | B134: 5070690-120000-45000-18000 | C134: =5070690-120000-45000-18000 -> 4887690
A136: 2013년 5월
A137: 계정잔액
A138: 학생회비잔액 | B138: =1304765-98000 -> 1206765
A139: 교학팀지원금 | B139: =5070690-120000-45000-18000 -> 4887690
A141: 대동제 사업 및 스승의 날 행사 수입 | G141: 대동제 사업 및 스승의 날 행사 지출
A142: 날짜 | B142: 행사명 | C142: 내역 | D142: 계정 | E142: 금액 | G142: 날짜 | H142: 행사명 | I142: 내역 | J142: 계정 | K142: 금액
G143: 2013.05.14 | H143: 대동제 | I143: 학생회 단체티 | J143: 학생회비 | K143: 85000
H144: 스승의 날 | I144: 선물 및 교통비 | J144: 학생회비 | K144: 127600
G145: 2013.05.15 | H145: 스승의 날 | I145: 케익 및 교통비 | J145: 학생회비 | K145: 34700
A146: 총액 | E146: 0 | G146: 총액 | K146: =SUM(K143:K145) -> 247300
A148: 대동제 사업 및 스승의 날 행사 후 계정잔액
A149: 학생회비잔액 | B149: 1206765-85000-127600-34700 | C149: =1206765-85000-127600-34700 -> 959465
A150: 교학팀지원금 | B150: =5070690-120000-45000-18000 -> 4887690 | C150: =5070690-120000-45000-18000 -> 4887690

Sheet Sheet2
A1: 2010년 12월
A2: 학생회 계좌 신설 | G2: 지출
A3: 날짜 | B3: 행사명 | C3: 내역 | D3: 계정 | E3: 금액 | G3: 없음
A4: 2010.12.10 | B4: 통장개설 | C4: 사비 | D4: 학생회비 | E4: 1000
A5: 2010.12.10 | B5: 전 학생회비 이월 | C5: 전 학생회비 이월 | D5: 학생회비 | E5: 600000
A6: 총액 | E6: 601000
A7: 기타 수입 | G7: 회식 지출
A8: 없음 | G8: 날짜 | H8: 행사명 | I8: 내역 | J8: 계정 | K8: 금액
G9: 2010.12.10 | H9: 학생회 회식 | I9: 회식(현경) | J9: 학생회비 | K9: 74000
G10: 총액 | K10: 74000
A12: 12월 계정잔액
A13: 학생회비잔액 | B13: 0+601,000-74,000 | C13: 527000
A14: 교학팀지원금 | B14: 1480000 | C14: 1480000
A15: 경영대학지원금 | B15: 0 | C15: 0
A16: 계정잔액
A17: 계정 | B17: 금액
A18: 학생회비 | B18: 527000
A19: 교학팀지원금 | B19: 1480000
A20: 경영대학지원금 | B20: 0
A22: 2011년 1월
A23: 계정잔액
A24: 계정 | B24: 금액
A25: 학생회비 | B25: 527000
A26: 교학팀지원금 | B26: 1480000
A27: 경영대학지원금 | B27: 0
A29: 학생회 동계 L.T 수입 | G29: 학생회 동계L.T 지출
A30: 날짜 | B30: 행사명 | C30: 내역 | D30: 계정 | E30: 금액 | G30: 날짜 | H30: 행사명 | I30: 내역 | J30: 계정 | K30: 금액
A31: 2010.1.3 | B31: 동계L.T | C31: 사비 | D31: 학생각출 | E31: 36900 | G31: 2011.1.3 | H31: 동계L.T | I31: 렌터카(KT) | J31: 학생회비 | K31: 185000
A32: 2011.1.27 | C32: 교학팀지원금입금 | D32: 학생회비 | E32: 556900 | I32: 수원홈플러스 | J32: 학생회비 | K32: 151900
I33: 신비펜션 | J33: 학생회비 | K33: 150000
I34: 기름주유 | J34: 학생회비 | K34: 50000
I35: 도시락(한솥) | J35: 학생회비 | K35: 20000
A36: 총액 | E36: 593800 | G36: 총액 | K36: 556900
A37: L.T 후 계정잔액
A38: 학생회비잔액 | B38: 527,000-556900+36900+556900 | C38: 563900
A39: 교학팀지원금 | B39: 1480000-556900 | C39: 923100
A40: 경영대학지원금 | B40: 0 | C40: 0
A42: 기타 수입 | G42: 기타 지출
A43: 날짜 | B43: 행사명 | C43: 내역 | D43: 계정 | E43: 금액 | G43: 없음
A44: 2011.1.10 | C44: 전 학생회 이월 | D44: 학생회비 | E44: 43314
A45: 2011.1.25 | C45: 비씨정산대금 | D45: 학생회비 | E45: 148
A46: 총액 | E46: 148
A47: 1월 계정잔액
A48: 학생회비잔액 | B48: 563900+148+43314 | C48: 607362
A49: 교학팀지원금 | B49: 923100 | C49: 923100
A50: 경영대학지원금 | B50: 0 | C50: 0
A52: 2011년 2월
A53: 계정잔액
A54: 계정 | B54: 금액
A55: 학생회비 | B55: 607362
A56: 교학팀지원금 | B56: 923100
A57: 경영대학지원금 | B57: 0
A59: 새터 수입 | G59: 새터 지출
A60: 날짜 | B60: 행사명 | C60: 내역 | D60: 계정 | E60: 금액 | G60: 날짜 | H60: 행사명 | I60: 내역 | J60: 계정 | K60: 금액
G61: 2011.2.17 | H61: 새터 | I61: 드림디포 수원점 | J61: 학생회비 | K61: 7500
H62: 새터 | I62: 깃발 구입 | J62: 학생회비 | K62: 90000
G63: 2011.2.20 | H63: 새터 | I63: 롤링페이퍼 준비 | J63: 학생회비 | K63: 10000
A64: 총액 | E64: 0 | G64: 총액 | K64: 107500
A65: 새터 후 계정잔액
A66: 학생회비잔액 | B66: 607362-107500 | C66: 499862
A67: 교학팀지원금 | B67: 923100 | C67: 923100
A68: 경영대학지원금 | B68: 0 | C68: 0
A69: 졸업식 및 랩실 청소 수입 | G69: 졸업식 및 랩실 청소 지출
A70: 없음 | G70: 날짜 | H70: 행사명 | I70: 내역 | J70: 계정 | K70: 금액
G71: 2011.2.17 | H71: 졸업식 | I71: 졸업식 선물 | J71: 학생회비 | K71: 90000
G72: 2011.2.21 | H72: 졸업식 | I72: 꾸미기 용품 | J72: 교학팀지원금 | K72: 23000
H73: 졸업식 | I73: 꽃 | J73: 교학팀지원금 | K73: 60000
G74: 2011.2.22 | H74: 졸업식 | I74: 케잌 | J74: 교학팀지원금 | K74: 37000
H75: 졸업식 | I75: 다과류 | J75: 교학팀지원금 | K75: 49300
H76: 랩실청소 | I76: 번호표 | J76: 학생회비 | K76: 25000
A77: 총액 | E77: 0 | G77: 총액 | K77: 284300
A78: 졸업식 및 랩실청소 후 계정잔액
A79: 학생회비잔액 | B79: 499862-90000-25000 | C79: 384862
A80: 교학팀지원금 | B80: 923100-23000-60000-37000-49300 | C80: 753800
A81: 경영대학지원금 | B81: 0 | C81: 0
A82: 신입생 오리엔테이션 수입 | G82: 신입생 오리엔테이션 지출
A83: 없음 | G83: 날짜 | H83: 행사명 | I83: 내역 | J83: 계정 | K83: 금액
G84: 2011.2.22 | H84: 신입생 OT | I84: OT준비 | J84: 학생회비 | K84: 2500
G85: 2011.2.23 | H85: 신입생 OT | I85: OT 뒷풀이 | J85: 교학팀지원금 | K85: 500000
A86: 총액 | E86: 0 | G86: 총액 | K86: 502500
A87: 졸업식 및 랩실청소 후 계정잔액
A88: 학생회비잔액 | B88: 384862-2500 | C88: 382362
A89: 교학팀지원금 | B89: 753800 | C89: 253800
A90: 경영대학지원금 | B90: 0 | C90: 0
A91: 기타비용 수입 | G91: 기타비용 지출
A92: 날짜 | B92: 행사명 | C92: 내역 | D92: 계정 | E92: 금액 | G92: 날짜 | H92: 행사명 | I92: 내역 | J92: 계정 | K92: 금액
A93: 2011.2.23 | B93: 학생회비 입금 | C93: 경영대 학생회 | D93: 학생회비 | E93: 1840000 | G93: 2011.2.28 | H93: 기타잡비 | I93: 박용선에게 입금 | J93: 학생회비 | K93: 34000
A94: 총액 | E94: 1840000 | G94: 총액 | K94: 34000
A95: 2월 계정잔액
A96: 학생회비잔액 | B96: 382362+1840000-34000 | C96: 2188362
A97: 교학팀지원금 | B97: 253800 | C97: 253800
A98: 경영대학지원금 | B98: 0 | C98: 0
A99: 2011년 3월
A100: 계정잔액
A101: 학생회비잔액 | B101: 2188362
A102: 교학팀지원금 | B102: 5880000
A103: 경영대학지원금 | B103: 2800000
A104: 기타수입 | G104: 기타지출
A105: 날짜 | B105: 행사명 | C105: 내역 | D105: 계정 | E105: 금액 | G105: 없음
A106: 2011.3.2 | C106: 결산이자 | D106: 학생회비 | E106: 128
A107: 총액 | E107: 128
A108: 개강총회 수입 | G108: 개강총회 지출
A109: 날짜 | B109: 행사명 | C109: 내역 | D109: 계정 | E109: 금액 | G109: 날짜 | H109: 행사명 | I109: 내역 | J109: 계정 | K109: 금액
A110: 2011.3.4 | B110: 개강총회 | C110: 뒷풀이 | D110: 학생각출 | E110: 400000 | G110: 2011.3.4 | H110: 개강총회 | I110: 뒷풀이 | J110: 교학팀지원금 | K110: 800000
H111: 개강총회 | I111: 뒷풀이 | J111: 학생각출 | K111: 400000
A112: 총액 | E112: 400000 | G112: 총액 | K112: 400000
A113: 학생회비 입금 | G113: 학생회비 지출
A114: 날짜 | B114: 행사명 | C114: 내역 | D114: 계정 | E114: 금액 | G114: 날짜 | H114: 행사명 | I114: 내역 | J114: 계정 | K114: 금액
A115: 2011.3.5 | C115: 신입생 학생회비 | D115: 학생회비 | E115: 80000 | G115: 2011.3.11 | H115: 물품구매 | I115: 경영대 학생회 | J115: 학생회비 | K115: 224800
A116: 2011.3.6 | C116: 신입생 학생회비 | D116: 학생회비 | E116: 80000
A117: 2011.3.7 | C117: 신입생 학생회비 | D117: 학생회비 | E117: 80000
A118: 2011.3.8 | C118: 신입생 학생회비 | D118: 학생회비 | E118: 80000
C119: 신입생 학생회비 | D119: 학생회비 | E119: 80000
A120: 2011.3.15 | B120: 신입생 학생회비 입금 | C120: 경영대 학생회 | D120: 학생회비 | E120: 80000
A121: 총액 | E121: 480000 | G121: 총액 | K121: 224800
A122: 개강총회, 학생회비 입금 후 계정잔액
A123: 학생회비잔액 | B123: 2188362+480000+128-224800 | C123: 2443690
A124: 교학팀지원금 | B124: 5880000-800000 | C124: 5080000
A125: 경영대학지원금 | B125: 2800000 | C125: 2800000
A126: MT비 수입(학생각출비용) | G126: MT비 지출(학생 각출비용)
A127: 날짜 | B127: 행사명 | C127: 내역 | D127: 계정 | E127: 금액 | G127: 날짜 | H127: 행사명 | I127: 내역 | J127: 계정 | K127: 금액
A128: 2011.3.11~3.13 | B128: MT | C128: MT비 | D128: 학생각출(제일은행) | E128: 480000 | G128: 2011.3.11 | H128: MT | I128: 방값 및 밥값 등등 | J128: 학생각출 | K128: 1355000
B129: MT | C129: MT비 | D129: 학생각출(신한,직접) | E129: 1455000 | H129: MT | I129: 방값 및 밥값 등등 | J129: 학생회비 | K129: 715000
A130: 특이사항 : 미납자 납입 시 늘어날 예정. 늘어나면 추가하겠음.(2011.3.25기준) | H130: MT | I130: 입금 수수료 | J130: 학생회비 | K130: 3500
G131: 특이사항 : 미납자 납입 시 학생각출금액이 커지고 학생회비가 줄어들 예정. 변경시 수정하겠음.(현재 2011.3.25 기준)
A132: 총액 | E132: 1935000 | G132: 총액 | K132: 2073500
A133: MT 수입 | G133: MT 지출
A134: 날짜 | B134: 행사명 | C134: 내역 | D134: 계정 | E134: 금액 | G134: 날짜 | H134: 행사명 | I134: 내역 | J134: 계정 | K134: 금액
A135: 없음 | G135: 2011.3.10 | H135: MT | I135: 홈플러스(장보기) | J135: 교학팀지원금 | K135: 211320
G136: 2011.3.11 | H136: MT | I136: 한솥도시락 | J136: 교학팀지원금 | K136: 137500
G137: 2011.3.12 | H137: MT | I137: 홈플러스(고기) | J137: 교학팀지원금 | K137: 465360
H138: MT | I138: 버스 | J138: 교학팀지원금 | K138: 800000
G139: 총액 | K139: 1614180
A140: MT 후 계정 잔액
A141: 학생회비잔액 | B141: 2443690+480000-101500-617000 | C141: 2205190
A142: 교학팀지원금 | B142: 5080000-1614180 | C142: 3465820
A143: 경영대학지원금 | B143: 2800000 | C143: 2800000
A144: 기타수입 | G144: 기타지출
A145: 날짜 | B145: 행사명 | C145: 내역 | D145: 계정 | E145: 금액 | G145: 없음
A146: 2011.3.25 | C146: 결산이자 | D146: 학생회비 | E146: 270
A147: 총액 | E147: 270
A148: 3월 계정잔액
A149: 학생회비잔액 | B149: 2205190+270 | C149: 2205460
A150: 교학팀지원금 | B150: 3465820 | C150: 3465820
A151: 경영대학지원금 | B151: 2800000 | C151: 2800000
A152: 2011년 4월
A153: 기타수입 | G153: 기타지출
A154: 날짜 | B154: 행사명 | C154: 내역 | D154: 계정 | E154: 금액 | G154: 없음
A155: 2011.4.1 | C155: 결산이자 | D155: 학생회비 | E155: 846
A156: 총액 | E156: 846
A157: 교복데이 뒷풀이 수입 | G157: 교복데이 뒷풀이 지출
A158: 날짜 | B158: 행사명 | C158: 내역 | D158: 계정 | E158: 금액 | G158: 날짜 | H158: 행사명 | I158: 내역 | J158: 계정 | K158: 금액
A159: 없음 | G159: 2011.4.6 | H159: 종강총회 | I159: 지원 | J159: 학생회비 | K159: 174000
A160: 총액 | G160: 총액 | K160: 174000
A161: 기타수입 | G161: 기타지출
A162: 날짜 | B162: 행사명 | C162: 내역 | D162: 계정 | E162: 금액 | G162: 없음
A163: 2011.4.25 | C163: 결산이자 | D163: 학생회비 | E163: 348
A164: 총액 | E164: 348
A165: 4월 계정잔액
A166: 학생회비잔액 | B166: 2205460+846+348-174000 | C166: 2032654
A167: 교학팀지원금 | B167: 3465820 | C167: 3465820
A168: 경영대학지원금 | B168: 2800000 | C168: 2800000
A169: 2011년 5월
A170: 결산이자 수입 | G170: 결산이자 지출
A171: 날짜 | B171: 행사명 | C171: 내역 | D171: 계정 | E171: 금액 | G171: 없음
A172: 2011.5.2 | C172: 결산이자 | D172: 학생회비 | E172: 4430
A173: 총액 | E173: 4430
A174: 학생회비 입금 | G174: 학생회비 지출
A175: 날짜 | B175: 행사명 | C175: 내역 | D175: 계정 | E175: 금액 | G175: 없음
A176: 2011.5.3 | B176: 학생회비 입금 | C176: 신입생 학생회비 | D176: 학생회비 | E176: 80000
A177: 총액 | E177: 80000
A178: 스승의 날 수익 | G178: 스승의날, 아경체전 지출
A179: 날짜 | B179: 행사명 | C179: 내역 | D179: 계정 | E179: 금액 | G179: 날짜 | H179: 행사명 | I179: 내역 | J179: 계정 | K179: 금액
A180: 없음 | G180: 2011.5.12 | H180: 스승의 날 | I180: 선물 | J180: 학생회비 | K180: 180000
H181: 스승의 날 | I181: 케익 | J181: 학생회비 | K181: 32500
H182: 스승의 날 | I182: 꽃 | J182: 학생회비 | K182: 16000
H183: 스승의 날 | I183: 다과구매 | J183: 학생회비 | K183: 6400
A184: 총액 | G184: 총액 | K184: 234900
A185: 아경체전 수익 | G185: 아경체전 지출
A186: 없음 | G186: 날짜 | H186: 행사명 | I186: 내역 | J186: 계정 | K186: 금액
G187: 2011.5.13 | H187: 아경체전 예선 | I187: 음료 | J187: 학생회비 | K187: 5600
A188: 총액 | G188: 총액 | K188: 5600
A189: 축제준비 수익 | G189: 축제준비 지출
A190: 날짜 | B190: 행사명 | C190: 내역 | D190: 계정 | E190: 금액 | G190: 날짜 | H190: 행사명 | I190: 내역 | J190: 계정 | K190: 금액
A191: 없음 | G191: 2011.5.14 | H191: 대동제 준비 | I191: 메뉴판 준비비용 | J191: 학생회비 | K191: 12900
A192: 총액 | G192: 총액 | K192: 12900
A193: 기타수입 | G193: 기타지출
A194: 날짜 | B194: 행사명 | C194: 내역 | D194: 계정 | E194: 금액 | G194: 없음
A195: 2011.5.16 | B195: MT비 추가입금 | C195: MT비 | D195: 학생회비 | E195: 35000
A196: 총액 | E196: 35000
A197: 축제 수익 | G197: 축제 지출
A198: 날짜 | B198: 행사명 | C198: 내역 | D198: 계정 | E198: 금액 | G198: 날짜 | H198: 행사명 | I198: 내역 | J198: 계정 | K198: 금액
A199: 2011.5.17 | B199: 대동제 준비 | C199: 미납 MT비 입금 | D199: 학생회비 | E199: 150000 | G199: 2011.5.16 | H199: 대동제 준비 | I199: 음료 및 자릿세 | J199: 학생회비 | K199: 719000
A200: 2011.5.20 | B200: 대동제 | C200: 수입 | D200: 학생회비 | E200: 2944420 | K200: 11400
K201: 3000
G202: 2011.5.17 | I202: 홈플러스 장보기 | K202: 552970
I203: 기타 용품 | K203: 8000
I204: 기타 용품 | K204: 7200
I205: 기타 용품 | K205: 10600
I206: ATM 출금 | K206: 20000
... 124 more rows

Sheet Sheet3
